fUSD/lending_fUSD_20260326
["ID","MTS","AMOUNT","RATE_DAILY","PERIOD"]
[418919073,1774546241069,-302.0,0.00011,2]
[418919074,1774546241089,-3461.78540108,0.00011,2]
[418919075,1774546241101,-327155.62051154,0.00011,2]
[418919076,1774546241110,-198777.3765,0.00011,2]
[418919077,1774546241119,-2828.7,0.00011,2]
[418919078,1774546241129,-2828.7,0.00011,2]
[418919079,1774546241138,-2828.7,0.00011,2]
[418919080,1774546241148,-2828.7,0.00011,2]
[418919081,1774546241157,-2828.7,0.00011,2]
[418919082,1774546241167,-2828.7,0.00011,2]
[418919083,1774546241176,-2828.7,0.00011,2]
[418919084,1774546241185,-2828.7,0.00011,2]
[418919085,1774546241194,-2828.7,0.00011,2]
[418919086,1774546241204,-2828.7,0.00011,2]
[418919087,1774546241213,-166.66,0.00011068,2]
[418919088,1774546241223,-36314.19640703,0.00011099,2]
[418919089,1774546241232,-26967.71177388,0.00011099,2]
[418919090,1774546241243,-26967.71177383,0.00011099,2]
[418919091,1774546241252,-78973.8324542,0.00011099,2]
[418919092,1774546241261,-6109.3425455,0.00011099,2]
[418919093,1774546241270,-2761.6523059,0.00011099,2]
[418919094,1774546241281,-311754.5032333,0.00011099,2]
[418919095,1774546241291,-200.0,0.000111,2]
[418919096,1774546241303,-200.0,0.000111,2]
[418919097,1774546241312,-220.0,0.000111,3]
[418919098,1774546241323,-154.0,0.000111,3]
[418919099,1774546241332,-166.66,0.00011128,2]
[418919100,1774546241342,-325.33,0.00011133,2]
[418919101,1774546241352,-166.66,0.00011178,2]
[418919102,1774546241361,-173.24,0.00011197,2]
[418919103,1774546241370,-195.0,0.00011197,2]
[418919104,1774546241379,-195.0,0.00011197,2]
[418919105,1774546241388,-195.0,0.00011197,2]
[418919106,1774546241645,-195.0,0.00011197,2]
[418919107,1774546241654,-195.0,0.00011197,2]
[418919108,1774546241663,-200.0,0.00011211,2]
[418919109,1774546241672,-200.0,0.00011211,2]
[418919110,1774546241681,-1050.52,0.00011247,2]
[418919111,1774546241691,-402.5617,0.0001126,2]
[418919112,1774546241700,-308.35748757,0.00011273,2]
[418919113,1774546241709,-166.66,0.00011288,2]
[418919114,1774546241718,-200.0,0.00011323,2]
[418919115,1774546241727,-200.0,0.00011323,2]
[418919116,1774546241736,-255.0,0.00011376,2]
[418919117,1774546241745,-300.0,0.00011391,2]
[418919118,1774546241754,-1680.0,0.00011395,2]
[418919119,1774546241763,-166.66,0.00011397,2]
[418919120,1774546241773,-325.33,0.00011434,2]
[418919121,1774546241782,-200.0,0.00011436,2]
[418919122,1774546241791,-200.0,0.00011436,2]
[418919123,1774546241801,-36314.19640703,0.00011456,2]
[418919124,1774546241811,-196.68,0.00011464,2]
[418919125,1774546241822,-498.640611,0.00011472,2]
[418919126,1774546241832,-498.640611,0.00011472,2]
[418919127,1774546241841,-498.640611,0.00011472,2]
[418919128,1774546241850,-498.640611,0.00011472,2]
[418919129,1774546241859,-151.0,0.00011472,2]
[418919130,1774546241869,-166.66,0.00011472,2]
[418919131,1774546241879,-150.0,0.000115,2]
[418919132,1774546241889,-166.66,0.00011507,2]
[418919133,1774546241899,-1000.0,0.00011521,2]
[418919134,1774546241908,-1000.0,0.00011521,2]
[418919135,1774546241918,-500.0,0.00011521,2]
[418919136,1774546241928,-1001.41443417,0.00011521,2]
[418919137,1774546241938,-1000.0,0.00011521,2]
[418919138,1774546241947,-1050.52,0.00011521,2]
[418919139,1774546241956,-232.44995365,0.00011541,2]
[418919140,1774546241964,-1386.78395259,0.00011541,2]
[418919141,1774546241974,-200.0,0.00011551,2]
[418919142,1774546241983,-200.0,0.00011551,2]
[418919143,1774546241992,-26967.71177383,0.00011574,2]
[418919144,1774546242001,-1727.46279702,0.00011614,2]
[418919145,1774546242010,-2768.07,0.00011648,2]
[418919146,1774546242019,-500.0,0.00011657,2]
[418919147,1774546242028,-489.50261858,0.00011733,2]
[418919148,1774546242038,-1050.52,0.00011795,2]
[418919149,1774546242047,-166.66,0.00011817,2]
[418919150,1774546242056,-1300.0,0.000119,4]
[418919151,1774546242065,-171.972079,0.000119,2]
[418919152,1774546242074,-351.002848,0.000119,2]
[418919153,1774546242084,-351.002848,0.000119,2]
[418919154,1774546242093,-351.002848,0.000119,2]
[418919155,1774546242103,-351.002848,0.000119,2]
[418919156,1774546242111,-1000.0,0.00011957,2]
[418919157,1774546242121,-516.59,0.00012,7]
[418919158,1774546242131,-516.59,0.00012,7]
[418919159,1774546242141,-36314.19640703,0.00012011,2]
[418919160,1774546242151,-15685.1,0.00012066,2]
[418919161,1774546242160,-1050.52,0.00012068,2]
[418919162,1774546242169,-1500.0,0.00012068,2]
[418919163,1774546242179,-1500.0,0.00012068,2]
[418919164,1774546242188,-1500.0,0.00012068,2]
[418919165,1774546242197,-1438.09495884,0.00012089,2]
[418919166,1774546242207,-155.0,0.00012099,2]
[418919167,1774546242216,-166.66,0.00012161,2]
[418919168,1774546242225,-26967.71177383,0.00012192,2]
[418919169,1774546242234,-502.35857949,0.00012205,2]
[418919170,1774546242244,-173.24,0.00012214,2]
[418919171,1774546242253,-1727.46279702,0.00012329,2]
[418919172,1774546242263,-363.377567,0.00012329,2]
[418919173,1774546242272,-1050.52,0.00012342,2]
[418919174,1774546242282,-160.0,0.00012383,2]
[418919175,1774546242292,-433.0,0.00012495,2]
[418919176,1774546242302,-17621.443883,0.00012505,2]
[418919177,1774546242311,-9211.34798985,0.00012525,2]
[418919178,1774546242322,-500.0,0.00012525,2]
[418919179,1774546242331,-500.0,0.00012525,2]
[418919180,1774546242341,-500.0,0.00012525,2]
[418919181,1774546242350,-500.0,0.00012525,2]
[418919182,1774546242359,-500.0,0.00012525,2]
[418919183,1774546242370,-500.0,0.00012525,2]
[418919184,1774546242379,-500.0,0.00012525,2]
[418919185,1774546242388,-500.0,0.00012525,2]
[418919186,1774546242397,-500.0,0.00012525,2]
[418919187,1774546242408,-500.0,0.00012525,2]
[418919188,1774546242418,-500.0,0.00012525,2]
[418919190,1774546242427,-500.0,0.00012525,2]
[418919191,1774546242437,-500.0,0.00012525,2]
[418919192,1774546242448,-500.0,0.00012525,2]
[418919193,1774546242457,-500.0,0.00012525,2]
[418919194,1774546242466,-500.0,0.00012525,2]
[418919195,1774546242475,-500.0,0.00012525,2]
[418919197,1774546242484,-500.0,0.00012525,2]
[418919198,1774546242493,-500.0,0.00012525,2]
[418919199,1774546242503,-352.82091102,0.00012525,2]
[418919200,1774546242511,-500.0,0.00012525,2]
[418919201,1774546242521,-500.0,0.00012525,2]
[418919202,1774546242532,-500.0,0.00012525,2]
[418919203,1774546242541,-500.0,0.00012525,2]
[418919204,1774546242551,-500.0,0.00012525,2]
[418919205,1774546242560,-500.0,0.00012525,2]
[418919206,1774546242569,-500.0,0.00012525,2]
[418919207,1774546242579,-500.0,0.00012525,2]
[418919208,1774546242590,-500.0,0.00012525,2]
[418919209,1774546242599,-500.0,0.00012525,2]
[418919210,1774546242608,-500.0,0.00012525,2]
[418919211,1774546242618,-500.0,0.00012525,2]
[418919212,1774546242628,-500.0,0.00012525,2]
[418919213,1774546242638,-151.0,0.00012525,2]
[418919214,1774546242648,-500.0,0.00012525,2]
[418919215,1774546242657,-500.0,0.00012525,2]
[418919216,1774546242666,-250.0,0.00012525,2]
[418919217,1774546242676,-250.0,0.00012525,2]
[418919218,1774546242685,-250.0,0.00012525,2]
[418919219,1774546242694,-250.0,0.00012525,2]
[418919221,1774546242704,-250.0,0.00012525,2]
[418919223,1774546242713,-250.0,0.00012525,2]
[418919225,1774546242721,-250.0,0.00012525,2]
[418919226,1774546242731,-288.88417801,0.00012525,2]
[418919228,1774546242739,-250.0,0.00012525,2]
[418919230,1774546242748,-250.0,0.00012525,2]
[418919232,1774546242758,-250.0,0.00012525,2]
[418919234,1774546242767,-250.0,0.00012525,2]
[418919236,1774546242775,-250.0,0.00012525,2]
[418919237,1774546242785,-289.05227741,0.00012525,2]
[418919238,1774546242794,-2351.0,0.00012535,2]
[418919239,1774546242803,-160.87254113,0.00012536,2]
[418919240,1774546242811,-489.50261858,0.00012567,2]
[418919241,1774546242820,-36314.19640703,0.00012567,2]
[418919242,1774546242830,-9552.16786547,0.0001258,2]
[418919243,1774546242838,-500.0,0.0001258,2]
[418919244,1774546242848,-151.0,0.0001258,2]
[418919245,1774546242857,-160.0,0.00012589,2]
[418919246,1774546242866,-151.0,0.00012605,2]
[418919247,1774546242875,-1050.52,0.00012616,2]
[418919248,1774546242885,-978.96152073,0.00012616,2]
[418919249,1774546242894,-310.34615657,0.00012616,2]
[418919250,1774546242903,-1007.06187853,0.00012616,2]
[418919251,1774546242913,-516.61,0.00012618,7]
[418919252,1774546242924,-9905.5980765,0.00012635,2]
[418919253,1774546242936,-500.0,0.00012635,2]
[418919254,1774546242946,-151.0,0.00012635,2]
[418919255,1774546242956,-252.5281944,0.00012637,2]
[418919256,1774546242965,-885.0,0.00012649,5]
[418919257,1774546242974,-275.493086,0.00012657,2]
[418919258,1774546242983,-10272.10520533,0.0001269,2]
[418919259,1774546242993,-500.0,0.0001269,2]
[418919260,1774546243002,-151.0,0.0001269,2]
[418919261,1774546243012,-250.0,0.00012694,2]
[418919262,1774546243021,-5180.91503644,0.00012745,2]
[418919263,1774546243031,-500.0,0.00012745,2]
[418919264,1774546243041,-151.0,0.00012745,2]
[418919265,1774546243050,-197.2441,0.000128,2]
[418919266,1774546243060,-500.0,0.000128,2]
[418919267,1774546243069,-151.0,0.000128,2]
[418919268,1774546243079,-1600.0,0.00012808,2]
[418919269,1774546243089,-26967.71177383,0.0001281,2]
[418919270,1774546243099,-3931.8755956,0.00012818,2]
[418919271,1774546243109,-1363.1785805,0.00012829,2]
[418919272,1774546243119,-69561.8322334,0.00012829,2]
[418919273,1774546243129,-498.640611,0.0001283,2]
[418919274,1774546243139,-498.640611,0.0001283,2]
[418919275,1774546243149,-498.640611,0.0001283,2]
[418919276,1774546243159,-498.640611,0.0001283,2]
[418919277,1774546243169,-294.167324,0.0001283,2]
[418919278,1774546243179,-500.0,0.00012855,2]
[418919279,1774546243189,-151.0,0.00012855,2]
[418919280,1774546243199,-1050.52,0.0001289,2]
[418919281,1774546243209,-500.0,0.0001291,2]
[418919282,1774546243218,-151.0,0.0001291,2]
[418919283,1774546243228,-151.0,0.00012915,2]
[418919284,1774546243238,-151.0,0.00012915,2]
[418919285,1774546243248,-1523.0,0.00012915,2]
[418919286,1774546243258,-300.09272576,0.00012915,2]
[418919287,1774546243267,-151.0,0.00012915,2]
[418919288,1774546243277,-1523.0,0.00012915,2]
[418919289,1774546243287,-151.0,0.00012915,2]
[418919290,1774546243297,-300.11645162,0.00012915,2]
[418919291,1774546243307,-1523.0,0.00012915,2]
[418919292,1774546243318,-151.0,0.00012915,2]
[418919293,1774546243328,-1523.0,0.00012915,2]
[418919294,1774546243338,-151.0,0.00012915,2]
[418919295,1774546243348,-160.0,0.00012915,2]
[418919296,1774546243358,-1523.0,0.00012915,2]
[418919297,1774546243369,-151.0,0.00012915,2]
[418919298,1774546243379,-160.0,0.00012915,2]
[418919299,1774546243388,-1523.0,0.00012915,2]
[418919300,1774546243398,-151.0,0.00012915,2]
[418919301,1774546243408,-162.81500828,0.00012915,2]
[418919302,1774546243417,-1523.0,0.00012915,2]
[418919303,1774546243427,-151.0,0.00012915,2]
[418919304,1774546243436,-1523.0,0.00012915,2]
[418919305,1774546243446,-151.0,0.00012915,2]
[418919306,1774546243456,-1523.0,0.00012915,2]
[418919307,1774546243466,-151.0,0.00012915,2]
[418919308,1774546243476,-1523.0,0.00012915,2]
[418919309,1774546243486,-151.0,0.00012915,2]
[418919310,1774546243496,-1523.0,0.00012915,2]
[418919311,1774546243506,-151.0,0.00012915,2]
[418919312,1774546243516,-151.0,0.00012915,2]
[418919313,1774546243525,-1523.0,0.00012915,2]
[418919314,1774546243537,-151.0,0.00012915,2]
[418919315,1774546243547,-1523.0,0.00012915,2]
[418919316,1774546243557,-151.0,0.00012915,2]
[418919317,1774546243567,-1523.0,0.00012915,2]
[418919318,1774546243576,-151.0,0.00012915,2]
[418919319,1774546243586,-1523.0,0.00012915,2]
[418919320,1774546243596,-151.0,0.00012915,2]
[418919321,1774546243606,-1523.0,0.00012915,2]
[418919323,1774546243616,-151.0,0.00012915,2]
[418919324,1774546243626,-1523.0,0.00012915,2]
[418919325,1774546243636,-151.0,0.00012915,2]
[418919327,1774546243646,-1523.0,0.00012915,2]
[418919329,1774546243656,-151.0,0.00012915,2]
[418919331,1774546243666,-1523.0,0.00012915,2]
[418919332,1774546243675,-228.45367885,0.00012915,2]
[418919333,1774546243685,-1523.0,0.00012915,2]
[418919334,1774546243694,-1523.0,0.00012915,2]
[418919335,1774546243704,-1523.0,0.00012915,2]
[418919336,1774546243714,-1523.0,0.00012915,2]
[418919337,1774546243724,-1523.0,0.00012915,2]
[418919338,1774546243734,-1523.0,0.00012915,2]
[418919339,1774546243743,-1523.0,0.00012915,2]
[418919340,1774546243753,-1523.0,0.00012915,2]
[418919341,1774546243762,-1523.0,0.00012915,2]
[418919342,1774546243772,-1523.0,0.00012915,2]
[418919343,1774546243782,-1523.0,0.00012915,2]
[418919344,1774546243792,-1523.0,0.00012915,2]
[418919345,1774546243801,-1523.0,0.00012915,2]
[418919346,1774546243811,-1523.0,0.00012915,2]
[418919347,1774546243821,-1523.0,0.00012915,2]
[418919348,1774546243831,-1523.0,0.00012915,2]
[418919349,1774546243840,-1523.0,0.00012915,2]
[418919350,1774546243850,-1523.0,0.00012915,2]
[418919351,1774546243859,-1523.0,0.00012915,2]
[418919352,1774546243870,-1523.0,0.00012915,2]
[418919353,1774546243879,-1523.0,0.00012915,2]
[418919354,1774546243889,-1523.0,0.00012915,2]
[418919355,1774546243899,-1523.0,0.00012915,2]
[418919356,1774546243908,-1523.0,0.00012915,2]
[418919357,1774546243919,-1523.0,0.00012915,2]
[418919358,1774546243928,-1523.0,0.00012915,2]
[418919359,1774546243937,-1258.7277887,0.00012915,2]
[418919360,1774546243948,-500.0,0.00012965,2]
[418919361,1774546243957,-151.0,0.00012965,2]
[418919362,1774546243967,-250.0,0.00013,2]
[418919363,1774546243977,-500.0,0.0001302,2]
[418919364,1774546243987,-175.7599353,0.0001302,2]
[418919365,1774546243996,-1727.46279702,0.00013043,2]
[418919366,1774546244006,-500.0,0.00013075,2]
[418919367,1774546244016,-151.0,0.00013122,2]
[418919368,1774546244026,-151.0,0.00013122,2]
[418919369,1774546244036,-151.0,0.00013122,2]
[418919370,1774546244045,-36314.19640703,0.00013122,2]
[418919371,1774546244055,-500.0,0.0001313,2]
[418919372,1774546244065,-1050.52,0.00013164,2]
[418919373,1774546244074,-155.0,0.00013199,2]
[418919374,1774546244083,-1000.0,0.00013199,2]
[418919375,1774546244093,-304.1662549,0.00013216,2]
[418919376,1774546244102,-15521.3427664,0.00013216,2]
[418919377,1774546244111,-173.24,0.00013232,2]
[418919378,1774546244121,-154.0,0.00013353,3]
[418919379,1774546244131,-489.50261858,0.000134,2]
[418919380,1774546244140,-827.32867186,0.000134,2]
[418919381,1774546244150,-3240.0,0.00013425,2]
[418919382,1774546244159,-26967.71177383,0.00013428,2]
[418919383,1774546244169,-351.002848,0.00013428,2]
[418919384,1774546244178,-351.002848,0.00013428,2]
[418919385,1774546244188,-351.002848,0.00013428,2]
[418919386,1774546244197,-351.002848,0.00013428,2]
[418919387,1774546244207,-1050.52,0.00013438,2]
[418919388,1774546244216,-839.2403,0.000135,2]
[418919389,1774546244225,-196.68,0.00013506,2]
[418919390,1774546244235,-1058.0,0.0001359,5]
[418919391,1774546244244,-36314.19640703,0.00013678,2]
[418919392,1774546244253,-500.0,0.00013698,2]
[418919393,1774546244263,-500.0,0.00013698,2]
[418919394,1774546244272,-500.0,0.00013698,2]
[418919395,1774546244281,-500.0,0.00013698,2]
[418919396,1774546244290,-500.0,0.00013698,2]
[418919397,1774546244300,-500.0,0.00013698,2]
[418919398,1774546244309,-500.0,0.00013698,2]
[418919399,1774546244319,-500.0,0.00013698,2]
[418919400,1774546244328,-500.0,0.00013698,2]
[418919401,1774546244337,-500.0,0.00013698,2]
[418919402,1774546244347,-424.18747396,0.00013698,2]
[418919403,1774546244356,-500.0,0.00013698,2]
[418919404,1774546244365,-500.0,0.00013698,2]
[418919405,1774546244374,-500.0,0.00013698,2]
[418919406,1774546244383,-500.0,0.00013698,2]
[418919407,1774546244392,-264.41973633,0.00013698,2]
[418919408,1774546244401,-500.0,0.00013698,2]
[418919409,1774546244410,-500.0,0.00013698,2]
[418919410,1774546244420,-390.47678169,0.00013698,2]
[418919411,1774546244429,-500.0,0.00013698,2]
[418919412,1774546244439,-270.78845739,0.00013698,2]
[418919413,1774546244448,-285.60236439,0.00013698,2]
[418919414,1774546244457,-154.82251136,0.00013698,2]
[418919415,1774546244467,-500.0,0.00013698,2]
[418919416,1774546244476,-500.0,0.00013698,2]
[418919417,1774546244485,-500.0,0.00013698,2]
[418919418,1774546244494,-500.0,0.00013698,2]
[418919419,1774546244503,-500.0,0.00013698,2]
[418919420,1774546244512,-500.0,0.00013698,2]
[418919421,1774546244521,-500.0,0.00013698,2]
[418919422,1774546244531,-500.0,0.00013698,2]
[418919423,1774546244540,-500.0,0.00013698,2]
[418919424,1774546244550,-500.0,0.00013698,2]
[418919425,1774546244560,-500.0,0.00013698,2]
[418919426,1774546244569,-500.0,0.00013698,2]
[418919427,1774546244579,-150.0,0.00013699,2]
[418919428,1774546244588,-150.0,0.00013699,2]
[418919429,1774546244597,-1797.61,0.00013699,2]
[418919430,1774546244606,-200.0,0.00013699,2]
[418919431,1774546244617,-151.0,0.00013699,2]
[418919432,1774546244627,-151.0,0.00013699,2]
[418919433,1774546244639,-151.0,0.00013699,2]
[418919434,1774546244648,-151.0,0.00013699,2]
[418919435,1774546244658,-151.0,0.00013699,2]
[418919436,1774546244668,-151.0,0.00013699,2]
[418919437,1774546244678,-151.0,0.00013699,2]
[418919438,1774546244687,-276.996238,0.00013699,2]
[418919439,1774546244697,-500.0,0.00013699,2]
[418919440,1774546244707,-500.0,0.00013699,2]
[418919441,1774546244716,-500.0,0.00013699,2]
[418919442,1774546244725,-500.0,0.00013699,2]
[418919443,1774546244735,-500.0,0.00013699,2]
[418919444,1774546244745,-500.0,0.00013699,2]
[418919445,1774546244754,-500.0,0.00013699,2]
[418919446,1774546244763,-500.0,0.00013699,2]
[418919447,1774546244771,-500.0,0.00013699,2]
[418919448,1774546244782,-500.0,0.00013699,2]
[418919449,1774546244791,-500.0,0.00013699,2]
[418919450,1774546244800,-255.84,0.00013699,2]
[418919451,1774546244810,-330.65480685,0.00013699,2]
[418919452,1774546244819,-2000.12,0.000137,2]
[418919453,1774546244828,-1315.22820948,0.000137,2]
[418919455,1774546245516,-248.38846044,0.00012536,2]
[418919456,1774546245526,-150.0,0.00012855,2]
[418919457,1774546245536,-225.628268,0.00012856,2]
[418919458,1774546245545,-213.18994,0.00013562,2]
[418919459,1774546245554,-888.60179052,0.000137,2]
[418919460,1774546245563,-1697.05,0.000137,2]
[418919461,1774546245572,-558.63,0.000137,2]
[418919462,1774546245582,-1050.52,0.00013712,2]
[418919463,1774546245591,-736.0,0.00013717,2]
[418919464,1774546245600,-1727.46279702,0.00013757,2]
[418919465,1774546245609,-3292.0,0.00013788,2]
[418919466,1774546245618,-1800.0,0.00013808,2]
[418919467,1774546245627,-201.963303,0.00013858,7]
[418919468,1774546245636,-2070.217,0.00013888,2]
[418919469,1774546245645,-158.947,0.00013888,2]
[418919470,1774546245654,-400.0,0.00013888,2]
[418919471,1774546245664,-400.0,0.00013888,2]
[418919472,1774546245672,-400.0,0.00013888,2]
[418919473,1774546245682,-400.0,0.00013888,2]
[418919474,1774546245690,-349.455313,0.00013923,7]
[418919475,1774546245699,-979.16666667,0.00013926,2]
[418919476,1774546245709,-1050.53705792,0.00013986,2]
[418919477,1774546245718,-4556.43492676,0.0001399,2]
[418919478,1774546245727,-504.0,0.00014,2]
[418919479,1774546245736,-26967.71177383,0.00014046,2]
[418919480,1774546245744,-2400.0,0.00014082,2]
[418919481,1774546245754,-259.3682,0.000141,2]
[418919482,1774546245763,-435.03662594,0.00014115,2]
[418919483,1774546245772,-294.8,0.00014156,2]
[418919484,1774546245782,-16369.21,0.000142,2]
[418919485,1774546245791,-489.50261858,0.00014233,2]
[418919486,1774546245799,-4676.91656651,0.00014233,2]
[418919487,1774546245819,-500.78070626,0.00014233,2]
[418919488,1774546245864,-31136.49913426,0.00014233,2]
[418919489,1774546245873,-500.0,0.00014247,2]
[418919490,1774546245882,-500.0,0.00014247,2]
[418919491,1774546245891,-1000.0,0.00014247,2]
[418919492,1774546245900,-500.0,0.00014247,2]
[418919493,1774546245909,-1000.0,0.00014247,2]
[418919494,1774546245918,-735.48920068,0.00014247,2]
[418919495,1774546246079,-603.0,0.00012536,2]
[418919496,1774546246132,-6594.69836548,0.00012536,2]
[418919497,1774546246141,-248.38846043,0.00014218,2]
[418919498,1774546246151,-269.71392266,0.00014247,2]
[418919499,1774546246160,-267.42294845,0.00014247,2]
[418919500,1774546246171,-232.57705155,0.00014247,2]
[418919501,1774546246181,-173.24,0.0001425,2]
[418919502,1774546246190,-151.0,0.00014264,2]
[418919503,1774546246199,-500.0,0.00014264,2]
[418919504,1774546246207,-500.0,0.00014264,2]
[418919505,1774546246216,-500.0,0.00014264,2]
[418919506,1774546246226,-852.0,0.00014267,5]
[418919507,1774546246234,-548.13868249,0.00014283,2]
[418919508,1774546246243,-500.0,0.00014283,2]
[418919509,1774546246252,-500.0,0.00014283,2]
[418919510,1774546246260,-89.34592604,0.00014283,2]
[418919514,1774547063113,1506.62,6.797e-05,2]
[418919515,1774547066349,1506.62,7.155e-05,2]
[418919516,1774547066659,1506.62,7.513e-05,2]
[418919517,1774547066858,1506.62,7.871e-05,2]
[418919518,1774547067063,1506.62,8.228e-05,2]
[418919534,1774547433676,-240.0,8.586e-05,2]
[418919535,1774547433686,-72.7,8.586e-05,2]
[418919544,1774547433781,-1433.92,8.586e-05,2]
[418919545,1774547433791,-1506.62,8.944e-05,2]
[418919546,1774547433800,-1506.62,9.302e-05,2]
[418919547,1774547433810,-289.8006139,9.445e-05,2]
[418919548,1774547433820,-1506.62,9.659e-05,2]
[418919549,1774547433830,-1506.62,0.00010017,2]
[418919550,1774547433840,-1200.0,0.0001019,2]
[418919551,1774547433849,-2000.0,0.00010192,2]
[418919552,1774547433858,-660.38775111,0.00010375,2]
[418919553,1774547433871,-410.6584033,0.00010375,2]
[418919554,1774547433890,-435.57384559,0.00010375,2]
[418919555,1774547433899,-207.64297778,0.000105,5]
[418919556,1774547433911,-1179.57782901,0.000105,5]
[418919564,1774547438053,-4145.77919321,0.000105,5]
[418919565,1774547438062,-150.0,0.000107,2]
[418919566,1774547438073,-1506.62,0.00010733,2]
[418919567,1774547438083,-1506.62,0.0001109,2]
[418919568,1774547438092,-1680.0,0.00011209,2]
[418919569,1774547438102,-250.0,0.00011345,2]
[418919570,1774547438112,-1506.62,0.00011448,2]
[418919571,1774547438121,-2000.0,0.00011466,2]
[418919572,1774547438130,-2507.66,0.00011507,2]
[418919573,1774547438139,-1506.62,0.00011806,2]
[418919574,1774547438148,-1003.89322888,0.00012068,2]
[418919575,1774547438158,-9999.99,0.00012069,2]
[418919576,1774547438167,-197.2263,0.000121,2]
[418919577,1774547438176,-1506.62,0.00012164,2]
[418919578,1774547438185,-2351.0,0.0001233,2]
[418919579,1774547438194,-150.0,0.00012521,2]
[418919580,1774547438203,-1506.62,0.00012521,2]
[418919581,1774547438213,-160.0,0.00012732,2]
[418919582,1774547438223,-979.16666667,0.00012732,2]
[418919583,1774547438232,-2000.0,0.00012739,2]
[418919584,1774547438241,-1506.62,0.00012879,2]
[418919585,1774547438251,-250.0,0.00013,2]
[418919586,1774547438261,-1506.62,0.00013237,2]
[418919587,1774547438269,-259.3215,0.000134,2]
[418919588,1774547438278,-2469.100784,0.00013425,2]
[418919589,1774547438290,-622.11909992,0.00013425,2]
[418919590,1774547438301,-148.78011608,0.00013425,2]
[418919591,1774547438310,-168.12,0.00013517,2]
[418919592,1774547438321,-168.12,0.00013517,2]
[418919593,1774547438330,-3292.0,0.00013563,2]
[418919594,1774547438339,-162.89152276,0.00013595,2]
[418919595,1774547438349,-1343.72847724,0.00013595,2]
[418919596,1774547438358,-342.93301655,0.00013595,2]
[418919597,1774547438371,-1106.40968487,0.00013595,2]
[418919599,1774547438384,-430.08729858,0.00013595,2]
[418919601,1774547438393,-3766.37,0.00013595,2]
[418919603,1774547438403,-255.0,0.00013611,2]
[418919605,1774547438412,-496.70449516,0.00013698,2]
[418919607,1774547438421,-150.0,0.00013699,2]
[418919610,1774547438441,-150.0,0.00013699,2]
[418919611,1774547438452,-365.08,0.00013699,2]
[418919612,1774547438462,-255.84,0.00013699,2]
[418919613,1774547438471,-1700.0,0.00013808,2]
[418919614,1774547438480,-1656.174,0.00014,2]
[418919615,1774547438490,-158.947,0.00014,2]
[418919617,1774547438501,-504.0,0.00014,2]
[418919620,1774547438510,-500.0,0.00014,2]
[418919622,1774547438520,-500.0,0.00014,2]
[418919623,1774547438530,-500.0,0.00014,2]
[418919625,1774547438540,-500.0,0.00014,2]
[418919626,1774547438549,-500.0,0.00014,2]
[418919627,1774547438560,-500.0,0.00014,2]
[418919628,1774547438570,-500.0,0.00014,2]
[418919629,1774547438580,-500.0,0.00014,2]
[418919630,1774547438589,-286.69720626,0.00014,2]
[418919631,1774547438606,-213.30279374,0.00014,2]
[418919632,1774547438616,-500.0,0.00014,2]